[Event "*** Titled Tuesday Blitz"]
[Site "Chess.com"]
[Date "2019.01.01"]
[Round "1"]
[White "mitrabhaa"]
[Black "MikePerelshteyn"]
[Result "0-1"]
[WhiteElo "2559"]
[BlackElo "2437"]
[TimeControl "180+2"]
[EndTime "13:10:40 PST"]
[Termination "MikePerelshteyn won by resignation"]

1. d4 {[%clk 0:03:01.8]} 1... Nf6 {[%clk 0:02:58.4]} 2. Nf3 {[%clk 0:03:02.9]}
2... g6 {[%clk 0:02:58.7]} 3. Nbd2 {[%clk 0:03:01.8]} 3... Bg7 {[%clk 0:02:59]}
4. e4 {[%clk 0:03:01.8]} 4... d6 {[%clk 0:02:59.1]} 5. Bb5+ {[%clk 0:03:03.1]}
5... c6 {[%clk 0:02:58.6]} 6. Bd3 {[%clk 0:03:04.4]} 6... O-O {[%clk 0:02:59.1]}
7. O-O {[%clk 0:03:05.6]} 7... Bg4 {[%clk 0:02:52.5]} 8. h3 {[%clk 0:03:05]}
8... Bxf3 {[%clk 0:02:52.8]} 9. Nxf3 {[%clk 0:03:05.9]} 9... Qc7 {[%clk
0:02:49.7]} 10. e5 {[%clk 0:03:05.5]} 10... dxe5 {[%clk 0:02:33.9]} 11. dxe5
{[%clk 0:03:06]} 11... Nd5 {[%clk 0:02:27.2]} 12. Qe2 {[%clk 0:03:04.1]} 12...
e6 {[%clk 0:02:25.4]} 13. c4 {[%clk 0:03:01.9]} 13... Nb6 {[%clk 0:02:13.4]} 14.
h4 {[%clk 0:02:28.3]} 14... c5 {[%clk 0:01:58.8]} 15. h5 {[%clk 0:02:29.2]}
15... Nc6 {[%clk 0:01:59.5]} 16. Bf4 {[%clk 0:02:29.7]} 16... Rad8 {[%clk
0:01:56.5]} 17. h6 {[%clk 0:02:26.2]} 17... Bh8 {[%clk 0:01:56]} 18. Rfe1 {[%clk
0:02:22.4]} 18... Nd4 {[%clk 0:01:52.5]} 19. Nxd4 {[%clk 0:02:22.9]} 19... Rxd4
{[%clk 0:01:53.1]} 20. Bg3 {[%clk 0:02:21.3]} 20... Rfd8 {[%clk 0:01:48.6]} 21.
Be4 {[%clk 0:02:21.4]} 21... Bxe5 {[%clk 0:01:26.8]} 22. Bh4 {[%clk 0:02:15.5]}
22... Re8 {[%clk 0:01:20.8]} 23. Bg5 {[%clk 0:02:12.2]} 23... Nxc4 {[%clk
0:01:16.3]} 24. b3 {[%clk 0:02:12.9]} 24... Nd6 {[%clk 0:01:11.3]} 25. Bxg6
{[%clk 0:02:09.6]} 25... Bh2+ {[%clk 0:00:57.4]} 26. Kxh2 {[%clk 0:02:09.7]}
26... hxg6 {[%clk 0:00:57.2]} 27. Qe5 {[%clk 0:02:09.9]} 27... Nb5 {[%clk
0:00:57.2]} 28. Bf6 {[%clk 0:02:08.9]} 28... Qxe5+ {[%clk 0:00:56.7]} 29. Rxe5
{[%clk 0:02:04.6]} 29... b6 {[%clk 0:00:50.8]} 30. h7+ {[%clk 0:02:01.4]} 30...
Kxh7 {[%clk 0:00:49.3]} 31. Rh1 {[%clk 0:02:01.4]} 31... g5 {[%clk 0:00:45]} 32.
Rxg5 {[%clk 0:02:02]} 32... Rh4+ {[%clk 0:00:44.9]} 33. Kg1 {[%clk 0:02:01.6]}
33... Rxh1+ {[%clk 0:00:46]} 34. Kxh1 {[%clk 0:02:03.1]} 34... Rg8 {[%clk
0:00:46.5]} 35. Re5 {[%clk 0:01:47.2]} 35... Kg6 {[%clk 0:00:46.8]} 36. Bh4
{[%clk 0:01:48.1]} 36... Rh8 {[%clk 0:00:43.9]} 37. g3 {[%clk 0:01:48.5]} 37...
Nd4 {[%clk 0:00:44.7]} 38. Rg5+ {[%clk 0:01:40.9]} 38... Kh6 {[%clk 0:00:38.3]}
39. Kg2 {[%clk 0:01:41.6]} 39... Nf5 {[%clk 0:00:38.2]} 40. Rg4 {[%clk 0:01:43]}
40... Nxh4+ {[%clk 0:00:38.7]} 41. Rxh4+ {[%clk 0:01:44.2]} 41... Kg7 {[%clk
0:00:40.2]} 42. Rg4+ {[%clk 0:01:45.7]} 42... Kf6 {[%clk 0:00:41.5]} 43. Rf4+
{[%clk 0:01:46.5]} 43... Ke7 {[%clk 0:00:42.3]} 44. Ra4 {[%clk 0:01:48.1]} 44...
a5 {[%clk 0:00:41.2]} 45. Kf3 {[%clk 0:01:49.5]} 45... Kd6 {[%clk 0:00:41.2]}
46. Rf4 {[%clk 0:01:50.2]} 46... f5 {[%clk 0:00:42.2]} 47. Ke2 {[%clk 0:01:51]}
47... b5 {[%clk 0:00:43.4]} 48. a4 {[%clk 0:01:50.6]} 48... bxa4 {[%clk
0:00:43.8]} 49. Rxa4 {[%clk 0:01:51.6]} 49... Rb8 {[%clk 0:00:45.2]} 50. Rxa5
{[%clk 0:01:52.9]} 50... Rxb3 {[%clk 0:00:45.9]} 51. Ra6+ {[%clk 0:01:54.5]}
51... Kd5 {[%clk 0:00:44.1]} 52. Ra8 {[%clk 0:01:55.5]} 52... c4 {[%clk
0:00:44.2]} 53. Rc8 {[%clk 0:01:56.4]} 53... Kd4 {[%clk 0:00:44.2]} 54. Rd8+
{[%clk 0:01:57.1]} 54... Ke4 {[%clk 0:00:44.9]} 55. Rc8 {[%clk 0:01:53.6]} 55...
Rb2+ {[%clk 0:00:45.1]} 56. Ke1 {[%clk 0:01:48.9]} 56... Kd3 {[%clk 0:00:44.2]}
57. Rd8+ {[%clk 0:01:50.1]} 57... Kc3 {[%clk 0:00:40.7]} 58. Rd6 {[%clk
0:01:48.1]} 58... e5 {[%clk 0:00:37.3]} 59. Rd5 {[%clk 0:01:49.1]} 59... Kb4
{[%clk 0:00:29.9]} 60. Rxe5 {[%clk 0:01:50.2]} 60... c3 {[%clk 0:00:31.2]} 61.
Kd1 {[%clk 0:01:37.5]} 61... Rxf2 {[%clk 0:00:30.1]} 62. Re8 {[%clk 0:01:38.6]}
62... Kc4 {[%clk 0:00:30.6]} 63. Rf8 {[%clk 0:01:36.1]} 63... Kd3 {[%clk
0:00:30.4]} 64. Rd8+ {[%clk 0:01:36.8]} 64... Ke3 {[%clk 0:00:31.2]} 65. Rc8
{[%clk 0:01:37.6]} 65... c2+ {[%clk 0:00:29.6]} 66. Kc1 {[%clk 0:01:37.1]} 66...
Kf3 {[%clk 0:00:29.5]} 67. Rc3+ {[%clk 0:01:38]} 67... Kg4 {[%clk 0:00:28.7]}
68. Rd3 {[%clk 0:01:36.4]} 68... Rf3 {[%clk 0:00:25.5]} 69. Rd4+ {[%clk
0:01:36.8]} 69... Kxg3 {[%clk 0:00:25.1]} 70. Kxc2 {[%clk 0:01:38.5]} 70... Re3
{[%clk 0:00:25.4]} 71. Rd8 {[%clk 0:01:37]} 71... f4 {[%clk 0:00:26]} 72. Rg8+
{[%clk 0:01:38.5]} 72... Kf2 {[%clk 0:00:26.8]} 73. Kd2 {[%clk 0:01:38.2]} 73...
f3 {[%clk 0:00:27.2]} 74. Rh8 {[%clk 0:01:39.7]} 74... Re5 {[%clk 0:00:26.1]}
75. Rg8 {[%clk 0:01:38.5]} 75... Rd5+ {[%clk 0:00:25.4]} 76. Kc2 {[%clk
0:01:39.3]} 76... Kf1 {[%clk 0:00:26.1]} 77. Rf8 {[%clk 0:01:38.5]} 77... f2
{[%clk 0:00:27.2]} 78. Rg8 {[%clk 0:01:39.8]} 78... Ke2 {[%clk 0:00:27.8]} 79.
Re8+ {[%clk 0:01:41.3]} 79... Kf3 {[%clk 0:00:28.5]} 80. Rf8+ {[%clk 0:01:42.9]}
80... Ke3 {[%clk 0:00:28.5]} 81. Re8+ {[%clk 0:01:44.3]} 81... Kf4 {[%clk
0:00:27.5]} 82. Rf8+ {[%clk 0:01:44.9]} 82... Rf5 {[%clk 0:00:28.2]} 0-1

[Event "*** Titled Tuesday Blitz"]
[Site "Chess.com"]
[Date "2019.01.01"]
[Round "1"]
[White "cherryandmint"]
[Black "akhairat"]
[Result "1-0"]
[WhiteElo "2602"]
[BlackElo "2240"]
[TimeControl "180+2"]
[EndTime "13:10:54 PST"]
[Termination "cherryandmint won on time"]

1. e4 {[%clk 0:03:01.9]} 1... c5 {[%clk 0:02:59.6]} 2. Nf3 {[%clk 0:03:02.6]}
2... a6 {[%clk 0:03:01]} 3. c3 {[%clk 0:03:02.9]} 3... Nf6 {[%clk 0:03:00.7]} 4.
e5 {[%clk 0:03:00.2]} 4... Nd5 {[%clk 0:03:01.7]} 5. d4 {[%clk 0:03:01.4]} 5...
cxd4 {[%clk 0:03:03.6]} 6. cxd4 {[%clk 0:03:02.1]} 6... d6 {[%clk 0:03:04.5]} 7.
Bd3 {[%clk 0:03:00.6]} 7... Nc6 {[%clk 0:03:03.2]} 8. O-O {[%clk 0:02:59.1]}
8... Bg4 {[%clk 0:03:00.4]} 9. h3 {[%clk 0:02:59.3]} 9... Bxf3 {[%clk
0:02:59.5]} 10. Qxf3 {[%clk 0:03:01.2]} 10... dxe5 {[%clk 0:03:00.3]} 11. dxe5
{[%clk 0:02:34.9]} 11... Nxe5 {[%clk 0:02:54.1]} 12. Qe4 {[%clk 0:02:35.7]}
12... Nxd3 {[%clk 0:02:52]} 13. Qxd3 {[%clk 0:02:37]} 13... Rc8 {[%clk
0:02:43.7]} 14. Bg5 {[%clk 0:01:48.1]} 14... h6 {[%clk 0:02:23.8]} 15. Bh4
{[%clk 0:01:48.4]} 15... g5 {[%clk 0:02:23.6]} 16. Bg3 {[%clk 0:01:49.4]} 16...
Bg7 {[%clk 0:02:23.2]} 17. Nd2 {[%clk 0:01:49.2]} 17... O-O {[%clk 0:01:55]} 18.
Rad1 {[%clk 0:01:48.7]} 18... e6 {[%clk 0:01:53.2]} 19. Nc4 {[%clk 0:01:45]}
19... b5 {[%clk 0:01:46.4]} 20. Ne5 {[%clk 0:01:32.2]} 20... Qe7 {[%clk
0:01:28.1]} 21. a3 {[%clk 0:01:23.1]} 21... Rfd8 {[%clk 0:01:27.6]} 22. Qf3
{[%clk 0:01:23.6]} 22... Qf6 {[%clk 0:01:26.5]} 23. Qe4 {[%clk 0:01:22]} 23...
Qf5 {[%clk 0:01:20.4]} 24. Qd4 {[%clk 0:01:01.6]} 24... Bf6 {[%clk 0:01:10.7]}
25. Rfe1 {[%clk 0:01:01.6]} 25... Nf4 {[%clk 0:01:02.3]} 26. Qa7 {[%clk
0:00:46]} 26... Bxe5 {[%clk 0:00:52.7]} 27. Rxd8+ {[%clk 0:00:45.9]} 27... Rxd8
{[%clk 0:00:54]} 28. Qxa6 {[%clk 0:00:46.6]} 28... Bxb2 {[%clk 0:00:46.4]} 29.
Qb6 {[%clk 0:00:44.1]} 29... Qd5 {[%clk 0:00:38.4]} 30. Bxf4 {[%clk 0:00:39.3]}
30... gxf4 {[%clk 0:00:40.3]} 31. Qc7 {[%clk 0:00:36.3]} 31... e5 {[%clk
0:00:26.6]} 32. Qe7 {[%clk 0:00:34.9]} 32... Bd4 {[%clk 0:00:25.5]} 33. Qf6
{[%clk 0:00:30.5]} 33... Qd6 {[%clk 0:00:26.4]} 34. Qh4 {[%clk 0:00:28.4]} 34...
Rc8 {[%clk 0:00:25.1]} 35. Qg4+ {[%clk 0:00:28.9]} 35... Kh7 {[%clk 0:00:23.1]}
36. Qxc8 {[%clk 0:00:29.8]} 36... Qxa3 {[%clk 0:00:20]} 37. Qd7 {[%clk
0:00:27.9]} 37... Kg6 {[%clk 0:00:19.9]} 38. Qxb5 {[%clk 0:00:28.2]} 38... Qc3
{[%clk 0:00:18.5]} 39. Qe2 {[%clk 0:00:28.4]} 39... h5 {[%clk 0:00:16.9]} 40.
Rb1 {[%clk 0:00:27.9]} 40... Qc5 {[%clk 0:00:17.1]} 41. Rf1 {[%clk 0:00:23.6]}
41... Qc3 {[%clk 0:00:17.6]} 42. Kh2 {[%clk 0:00:23.3]} 42... Qc5 {[%clk
0:00:17.4]} 43. Qe4+ {[%clk 0:00:23.3]} 43... Kf6 {[%clk 0:00:15]} 44. Qf3
{[%clk 0:00:23.8]} 44... Kg6 {[%clk 0:00:15.9]} 45. h4 {[%clk 0:00:19.6]} 45...
f5 {[%clk 0:00:16.5]} 46. g3 {[%clk 0:00:19.9]} 46... fxg3+ {[%clk 0:00:16.1]}
47. fxg3 {[%clk 0:00:21.5]} 47... Qc2+ {[%clk 0:00:13.8]} 48. Kh3 {[%clk
0:00:22.6]} 48... Qe4 {[%clk 0:00:14]} 49. Qxe4 {[%clk 0:00:22.5]} 49... fxe4
{[%clk 0:00:15.9]} 50. Kg2 {[%clk 0:00:23.5]} 50... e3 {[%clk 0:00:14.9]} 51.
Kf3 {[%clk 0:00:14.9]} 51... Kf5 {[%clk 0:00:16.1]} 52. Rc1 {[%clk 0:00:14.7]}
52... e4+ {[%clk 0:00:13.9]} 53. Ke2 {[%clk 0:00:13.6]} 53... Kg4 {[%clk
0:00:15.3]} 54. Rc4 {[%clk 0:00:14.6]} 54... Ba7 {[%clk 0:00:14.8]} 55. Rc7
{[%clk 0:00:15.3]} 55... Bd4 {[%clk 0:00:14.7]} 56. Rd7 {[%clk 0:00:16.4]} 56...
Bc5 {[%clk 0:00:14.4]} 57. Rg7+ {[%clk 0:00:16.9]} 57... Kh3 {[%clk 0:00:12]}
58. Rg5 {[%clk 0:00:17.7]} 58... Bd6 {[%clk 0:00:13.5]} 59. Rxh5 {[%clk
0:00:14.1]} 59... Bxg3 {[%clk 0:00:14.7]} 60. Rh7 {[%clk 0:00:14.7]} 60... Bf4
{[%clk 0:00:14.4]} 61. h5 {[%clk 0:00:14.6]} 61... Kg4 {[%clk 0:00:15.7]} 62.
Rh8 {[%clk 0:00:15.7]} 62... Kf5 {[%clk 0:00:15.1]} 63. h6 {[%clk 0:00:16.7]}
63... Kg6 {[%clk 0:00:15.7]} 64. h7 {[%clk 0:00:17.7]} 64... Be5 {[%clk
0:00:11.6]} 65. Re8 {[%clk 0:00:18.1]} 1-0

[Event "*** Titled Tuesday Blitz"]
[Site "Chess.com"]
[Date "2019.01.01"]
[Round "1"]
[White "Keaton87"]
[Black "FightingChess"]
[Result "1/2-1/2"]
[WhiteElo "2511"]
[BlackElo "2152"]
[TimeControl "180+2"]
[EndTime "13:11:00 PST"]
[Termination "Game drawn by agreement"]

1. Nf3 {[%clk 0:02:49.2]} 1... d5 {[%clk 0:03:00.7]} 2. e3 {[%clk 0:02:46.1]}
2... Nf6 {[%clk 0:03:01.5]} 3. c4 {[%clk 0:02:46.2]} 3... c6 {[%clk 0:03:02.9]}
4. Nc3 {[%clk 0:02:44.6]} 4... Bg4 {[%clk 0:03:02.4]} 5. Qb3 {[%clk 0:02:44.5]}
5... Qb6 {[%clk 0:03:01.4]} 6. Ne5 {[%clk 0:02:43.1]} 6... Be6 {[%clk
0:02:56.9]} 7. d4 {[%clk 0:02:33]} 7... Nbd7 {[%clk 0:02:56.3]} 8. Nxd7 {[%clk
0:02:30.2]} 8... Nxd7 {[%clk 0:02:56.9]} 9. c5 {[%clk 0:02:30.7]} 9... Qxb3
{[%clk 0:02:57.6]} 10. axb3 {[%clk 0:02:32]} 10... a6 {[%clk 0:02:58.3]} 11. b4
{[%clk 0:02:32.8]} 11... Rd8 {[%clk 0:02:49.7]} 12. Bd3 {[%clk 0:02:31.2]} 12...
g6 {[%clk 0:02:50.3]} 13. O-O {[%clk 0:02:28]} 13... Bg7 {[%clk 0:02:51.2]} 14.
f4 {[%clk 0:02:24.8]} 14... Bf5 {[%clk 0:02:52.2]} 15. Be2 {[%clk 0:02:21.8]}
15... h5 {[%clk 0:02:52.3]} 16. h3 {[%clk 0:02:17.1]} 16... Nf6 {[%clk
0:02:52.6]} 17. Bd2 {[%clk 0:02:16.5]} 17... Ne4 {[%clk 0:02:53.3]} 18. Nxe4
{[%clk 0:02:14.9]} 18... Bxe4 {[%clk 0:02:54.3]} 19. Kf2 {[%clk 0:02:13.2]}
19... O-O {[%clk 0:02:55.2]} 20. g4 {[%clk 0:02:09]} 20... hxg4 {[%clk
0:02:46.2]} 21. hxg4 {[%clk 0:02:09.7]} 21... f6 {[%clk 0:02:45.2]} 22. Kg3
{[%clk 0:02:06.7]} 22... e5 {[%clk 0:02:45.9]} 23. Bc3 {[%clk 0:02:06.1]} 23...
exd4 {[%clk 0:02:37.2]} 24. Bxd4 {[%clk 0:02:05.7]} 24... f5 {[%clk 0:02:38.5]}
25. gxf5 {[%clk 0:01:50.3]} 25... Bxd4 {[%clk 0:02:21.6]} 26. exd4 {[%clk
0:01:50.3]} 26... Bxf5 {[%clk 0:02:16.9]} 27. Bg4 {[%clk 0:01:46.2]} 27... Rde8
{[%clk 0:02:15]} 28. Rae1 {[%clk 0:01:46.3]} 28... Be4 {[%clk 0:02:06.4]} 29.
Bf3 {[%clk 0:01:44.4]} 29... Bxf3 {[%clk 0:02:04.9]} 30. Kxf3 {[%clk 0:01:42.9]}
30... Rxe1 {[%clk 0:02:01.9]} 31. Rxe1 {[%clk 0:01:43.8]} 31... g5 {[%clk
0:02:03.6]} 32. f5 {[%clk 0:01:24.6]} 32... Rxf5+ {[%clk 0:02:04.1]} 33. Kg4
{[%clk 0:01:25.9]} 33... Rf4+ {[%clk 0:02:03.6]} 34. Kxg5 {[%clk 0:01:27]} 34...
Rxd4 {[%clk 0:02:04.7]} 35. Kf6 {[%clk 0:01:15.8]} 35... Rxb4 {[%clk 0:02:04]}
36. Rg1+ {[%clk 0:01:12.4]} 36... Kf8 {[%clk 0:01:55.9]} 37. Rh1 {[%clk
0:01:12.4]} 37... Rf4+ {[%clk 0:01:49.1]} 38. Ke6 {[%clk 0:01:13.4]} 38... Rc4
{[%clk 0:01:49.2]} 39. Rf1+ {[%clk 0:01:04.4]} 39... Kg8 {[%clk 0:01:45.5]} 40.
Rg1+ {[%clk 0:01:05.4]} 40... Kh7 {[%clk 0:01:46.6]} 41. Kd6 {[%clk 0:01:02.7]}
41... Rb4 {[%clk 0:01:45.7]} 42. Rg2 {[%clk 0:01:02]} 42... d4 {[%clk
0:01:43.7]} 43. Ke5 {[%clk 0:00:53.6]} 43... Kh6 {[%clk 0:01:42]} 44. Ke4 {[%clk
0:00:39.4]} 44... Kh5 {[%clk 0:01:40.7]} 45. Kd3 {[%clk 0:00:39.2]} 45... Kh4
{[%clk 0:01:39.9]} 46. Ke4 {[%clk 0:00:39.8]} 46... Kh3 {[%clk 0:01:40.7]} 47.
Rg7 {[%clk 0:00:38.7]} 47... Rxb2 {[%clk 0:01:38.9]} 48. Kxd4 {[%clk 0:00:39.9]}
48... Rb5 {[%clk 0:01:29.9]} 49. Rg8 {[%clk 0:00:39.7]} 49... a5 {[%clk
0:01:24.6]} 50. Kc4 {[%clk 0:00:38.4]} 50... Kh4 {[%clk 0:01:21.5]} 51. Rg7
{[%clk 0:00:38.8]} 51... Kh5 {[%clk 0:01:18.8]} 52. Rg1 {[%clk 0:00:39.5]} 52...
a4 {[%clk 0:01:15.8]} 53. Ra1 {[%clk 0:00:38.6]} 53... Ra5 {[%clk 0:01:17]} 54.
Kb4 {[%clk 0:00:39.4]} 54... Rb5+ {[%clk 0:01:09.1]} 55. Kc4 {[%clk 0:00:40.6]}
55... Kg5 {[%clk 0:00:34.7]} 56. Rxa4 {[%clk 0:00:41.3]} 56... Kf5 {[%clk
0:00:36.3]} 57. Ra1 {[%clk 0:00:39.4]} 57... Rb2 {[%clk 0:00:34.3]} 58. Rf1+
{[%clk 0:00:39.3]} 58... Ke6 {[%clk 0:00:34.6]} 59. Rd1 {[%clk 0:00:40]} 59...
Rc2+ {[%clk 0:00:32]} 60. Kb4 {[%clk 0:00:40.9]} 60... Ke5 {[%clk 0:00:28.6]}
61. Rd7 {[%clk 0:00:41.1]} 61... Rb2+ {[%clk 0:00:27.5]} 62. Kc4 {[%clk
0:00:42]} 62... Rb1 {[%clk 0:00:28.3]} 63. Rd8 {[%clk 0:00:40.6]} 63... Ke6
{[%clk 0:00:25.3]} 64. Rd2 {[%clk 0:00:41]} 64... Ke7 {[%clk 0:00:25.9]} 65. Rd3
{[%clk 0:00:41]} 65... Ke8 {[%clk 0:00:24.2]} 66. Rd2 {[%clk 0:00:42.1]} 66...
Re1 {[%clk 0:00:24.8]} 67. Rb2 {[%clk 0:00:38.3]} 67... Re4+ {[%clk 0:00:23.6]}
68. Kd3 {[%clk 0:00:37.1]} 68... Re7 {[%clk 0:00:25.2]} 69. Kd4 {[%clk
0:00:35.4]} 69... Kd8 {[%clk 0:00:26.5]} 70. Rb1 {[%clk 0:00:35.9]} 70... Kc7
{[%clk 0:00:27.8]} 71. Rh1 {[%clk 0:00:35.2]} 71... Rd7+ {[%clk 0:00:29.1]} 72.
Kc4 {[%clk 0:00:36.4]} 72... Rg7 {[%clk 0:00:30.6]} 73. Rh4 {[%clk 0:00:37.1]}
73... Rf7 {[%clk 0:00:31.5]} 74. Rg4 {[%clk 0:00:38.2]} 74... b5+ {[%clk
0:00:32.5]} 75. cxb6+ {[%clk 0:00:38.8]} 75... Kxb6 {[%clk 0:00:34.4]} 76. Rh4
{[%clk 0:00:39.6]} 76... Rg7 {[%clk 0:00:35.2]} 77. Rf4 {[%clk 0:00:40.3]} 77...
Rd7 {[%clk 0:00:36.3]} 78. Rh4 {[%clk 0:00:41.4]} 78... Rd6 {[%clk 0:00:37.8]}
79. Rg4 {[%clk 0:00:42.5]} 79... Rd1 {[%clk 0:00:37.3]} 80. Rh4 {[%clk
0:00:43.3]} 80... Rc1+ {[%clk 0:00:38.7]} 81. Kb3 {[%clk 0:00:43.2]} 81... Kb5
{[%clk 0:00:39.5]} 82. Rh5+ {[%clk 0:00:43.9]} 82... c5 {[%clk 0:00:40.6]} 83.
Rh4 {[%clk 0:00:45]} 83... c4+ {[%clk 0:00:40.5]} 84. Kb2 {[%clk 0:00:45]} 84...
Rg1 {[%clk 0:00:41.5]} 85. Rh3 {[%clk 0:00:42.8]} 85... Kb4 {[%clk 0:00:41.7]}
86. Kc2 {[%clk 0:00:43.5]} 86... Rg2+ {[%clk 0:00:43]} 87. Kc1 {[%clk
0:00:44.8]} 87... Re2 {[%clk 0:00:43.7]} 88. Rg3 {[%clk 0:00:45.8]} 88... Rh2
{[%clk 0:00:41.5]} 89. Rf3 {[%clk 0:00:46.7]} 89... Rh1+ {[%clk 0:00:37.9]} 90.
Kc2 {[%clk 0:00:47.5]} 90... Rh2+ {[%clk 0:00:38.6]} 91. Kc1 {[%clk 0:00:48.9]}
91... c3 {[%clk 0:00:39.1]} 92. Rf8 {[%clk 0:00:49.7]} 92... Kb3 {[%clk
0:00:39.9]} 93. Rb8+ {[%clk 0:00:50.6]} 93... Kc4 {[%clk 0:00:41]} 94. Rc8+
{[%clk 0:00:51.9]} 1/2-1/2

[Event "*** Titled Tuesday Blitz"]
[Site "Chess.com"]
[Date "2019.01.01"]
[Round "1"]
[White "Hieronymus00"]
[Black "Zenzo"]
[Result "0-1"]
[WhiteElo "2140"]
[BlackElo "2540"]
[TimeControl "180+2"]
[EndTime "13:11:33 PST"]
[Termination "Zenzo won by resignation"]

1. e4 {[%clk 0:03:00.9]} 1... e5 {[%clk 0:02:58.3]} 2. Nf3 {[%clk 0:03:00.8]}
2... Nc6 {[%clk 0:02:59]} 3. Bb5 {[%clk 0:03:01.5]} 3... a6 {[%clk 0:03:00.1]}
4. Ba4 {[%clk 0:03:02]} 4... Nge7 {[%clk 0:03:00.3]} 5. O-O {[%clk 0:02:57.8]}
5... g6 {[%clk 0:03:01.4]} 6. c3 {[%clk 0:02:54.9]} 6... Bg7 {[%clk 0:03:01.9]}
7. d4 {[%clk 0:02:55.5]} 7... exd4 {[%clk 0:03:03.8]} 8. cxd4 {[%clk 0:02:55]}
8... b5 {[%clk 0:03:05.4]} 9. Bb3 {[%clk 0:02:48.8]} 9... O-O {[%clk 0:03:06.2]}
10. Nc3 {[%clk 0:02:41.6]} 10... d6 {[%clk 0:03:03.5]} 11. h3 {[%clk 0:02:40.7]}
11... Na5 {[%clk 0:03:01.7]} 12. Bc2 {[%clk 0:02:41.2]} 12... c5 {[%clk
0:03:01.1]} 13. Bg5 {[%clk 0:02:29]} 13... h6 {[%clk 0:03:00.2]} 14. Bh4 {[%clk
0:02:29.1]} 14... g5 {[%clk 0:02:52.1]} 15. Bg3 {[%clk 0:02:28.6]} 15... Nc4
{[%clk 0:02:43.1]} 16. Rb1 {[%clk 0:01:56.5]} 16... f5 {[%clk 0:02:11.5]} 17.
exf5 {[%clk 0:01:03.5]} 17... Bxf5 {[%clk 0:02:10.6]} 18. Ne4 {[%clk 0:00:43.4]}
18... Rc8 {[%clk 0:01:24.7]} 19. Re1 {[%clk 0:00:39.7]} 19... Ng6 {[%clk
0:01:10.2]} 20. Bb3 {[%clk 0:00:29.6]} 20... Nf4 {[%clk 0:01:06.1]} 21. Bxf4
{[%clk 0:00:20.8]} 21... gxf4 {[%clk 0:01:07.7]} 22. Rc1 {[%clk 0:00:21.2]}
22... Kh8 {[%clk 0:00:53]} 23. Bxc4 {[%clk 0:00:18.6]} 23... bxc4 {[%clk
0:00:54.9]} 24. Qd2 {[%clk 0:00:18.4]} 24... cxd4 {[%clk 0:00:52.1]} 25. Nxd4
{[%clk 0:00:19.1]} 25... d5 {[%clk 0:00:36.6]} 26. Nc3 {[%clk 0:00:18.6]} 26...
Qd7 {[%clk 0:00:33.3]} 27. Rcd1 {[%clk 0:00:19.3]} 27... Bd3 {[%clk 0:00:31.7]}
28. Nce2 {[%clk 0:00:16.3]} 28... f3 {[%clk 0:00:31.4]} 29. Nxf3 {[%clk
0:00:16.9]} 29... Rxf3 {[%clk 0:00:32.4]} 30. gxf3 {[%clk 0:00:17.6]} 30... Qxh3
{[%clk 0:00:33.7]} 31. Ng3 {[%clk 0:00:18.7]} 31... Rg8 {[%clk 0:00:34.3]} 32.
Qe3 {[%clk 0:00:17.7]} 32... Bxb2 {[%clk 0:00:33.4]} 33. Rxd3 {[%clk 0:00:15.6]}
33... cxd3 {[%clk 0:00:30.7]} 34. Qxd3 {[%clk 0:00:16.7]} 34... Be5 {[%clk
0:00:27.5]} 35. Rxe5 {[%clk 0:00:16.5]} 35... Rxg3+ {[%clk 0:00:28.5]} 36. fxg3
{[%clk 0:00:16.7]} 36... Qxg3+ {[%clk 0:00:30.4]} 37. Kf1 {[%clk 0:00:18.1]}
37... Qxe5 {[%clk 0:00:31.8]} 38. Qxa6 {[%clk 0:00:18.7]} 38... h5 {[%clk
0:00:25.8]} 39. Qh6+ {[%clk 0:00:15.2]} 39... Kg8 {[%clk 0:00:27]} 40. Qg6+
{[%clk 0:00:16.3]} 40... Kf8 {[%clk 0:00:28.3]} 41. Qh6+ {[%clk 0:00:17]} 41...
Ke7 {[%clk 0:00:29.5]} 42. Qh7+ {[%clk 0:00:15.2]} 42... Kd6 {[%clk 0:00:30.8]}
43. Qh6+ {[%clk 0:00:16.2]} 43... Kc5 {[%clk 0:00:30.2]} 44. Qa6 {[%clk
0:00:17.1]} 44... h4 {[%clk 0:00:22.4]} 45. Qa7+ {[%clk 0:00:17.2]} 45... Kb5
{[%clk 0:00:21.5]} 46. Qb7+ {[%clk 0:00:17.9]} 46... Kc4 {[%clk 0:00:20.2]} 47.
Qc6+ {[%clk 0:00:18.4]} 47... Kd3 {[%clk 0:00:19.8]} 48. Qb5+ {[%clk 0:00:18]}
48... Kc2 {[%clk 0:00:17.4]} 49. Qb3+ {[%clk 0:00:14.1]} 49... Kd2 {[%clk
0:00:17.3]} 50. Qb4+ {[%clk 0:00:15.1]} 50... Kd3 {[%clk 0:00:16.5]} 51. Qb5+
{[%clk 0:00:16]} 51... Kc2 {[%clk 0:00:10.6]} 52. Qb3+ {[%clk 0:00:16.8]} 52...
Kc1 {[%clk 0:00:11.8]} 53. Qa3+ {[%clk 0:00:13.8]} 53... Kb1 {[%clk 0:00:11.9]}
54. Qb3+ {[%clk 0:00:14.5]} 54... Ka1 {[%clk 0:00:13]} 55. Kf2 {[%clk
0:00:15.1]} 55... h3 {[%clk 0:00:13.8]} 56. a4 {[%clk 0:00:10.8]} 56... h2
{[%clk 0:00:13]} 57. Kg2 {[%clk 0:00:11.2]} 57... d4 {[%clk 0:00:10.5]} 58. Qd1+
{[%clk 0:00:10.4]} 58... Kb2 {[%clk 0:00:09.1]} 59. Qd2+ {[%clk 0:00:10.7]}
59... Kb3 {[%clk 0:00:08.7]} 60. a5 {[%clk 0:00:11.9]} 60... Qe3 {[%clk
0:00:06.7]} 61. Qd1+ {[%clk 0:00:10.5]} 61... Kb4 {[%clk 0:00:07]} 62. Qb1+
{[%clk 0:00:10.5]} 62... Kxa5 {[%clk 0:00:07.8]} 63. Kxh2 {[%clk 0:00:11.4]}
63... d3 {[%clk 0:00:08.9]} 64. Qa2+ {[%clk 0:00:11.5]} 64... Kb4 {[%clk
0:00:09.7]} 65. Qb2+ {[%clk 0:00:12.7]} 65... Kc4 {[%clk 0:00:11.1]} 66. Qa2+
{[%clk 0:00:14.1]} 66... Kc3 {[%clk 0:00:12]} 67. Qa3+ {[%clk 0:00:13.2]} 67...
Kd2 {[%clk 0:00:13.2]} 68. Kg3 {[%clk 0:00:11.1]} 68... Ke2 {[%clk 0:00:11.7]}
69. Qa8 {[%clk 0:00:08.6]} 69... d2 {[%clk 0:00:11.9]} 70. Qa6+ {[%clk
0:00:09.1]} 70... Ke1 {[%clk 0:00:13.1]} 0-1